fUSD/lending_fUSD_20240607
["ID","MTS","AMOUNT","RATE_DAILY","PERIOD"]
[328741167,1717756232502,-383.83128668,0.00019726,2]
[328741168,1717756232511,-226.6238354,0.000201,2]
[328741169,1717756232520,-152.0,0.00023464,3]
[328741170,1717756232530,-716.82,0.00023828,2]
[328741171,1717756232540,-156.7,0.00024384,2]
[328741172,1717756232549,-1664.02487792,0.000249,2]
[328741173,1717756232573,-1335.97512208,0.000249,2]
[328741174,1717756232582,-1070.70399542,0.00024999,2]
[328741175,1717756232598,-368.36047548,0.00024999,2]
[328741176,1717756237836,-255.06953445,0.00024999,2]
[328741183,1717756238178,-1136.79769303,0.00024999,2]
[328741184,1717756238188,-257.9877105,0.00025,2]
[328741185,1717756238199,-446.79515573,0.00025,2]
[328741186,1717756238212,-2000.0,0.00025,2]
[328741187,1717756238221,-200.0,0.00025,2]
[328741188,1717756238231,-2000.0,0.00025,2]
[328741189,1717756238240,-200.0,0.00025,2]
[328741190,1717756238251,-1250.0,0.00025,2]
[328741191,1717756238260,-1369.55761,0.00025,2]
[328741192,1717756238270,-4848.69,0.0002501,2]
[328741193,1717756238282,-2000.0,0.0002525,2]
[328741194,1717756238292,-200.0,0.0002525,2]
[328741195,1717756238302,-2000.0,0.0002525,2]
[328741196,1717756238311,-200.0,0.0002525,2]
[328741197,1717756238321,-300.0,0.000255,2]
[328741198,1717756238331,-1067.12056371,0.00025502,2]
[328741199,1717756238341,-2000.0,0.00025503,2]
[328741200,1717756238351,-200.0,0.00025503,2]
[328741201,1717756238360,-2000.0,0.00025503,2]
[328741202,1717756238370,-200.0,0.00025503,2]
[328741203,1717756238380,-11554.63022074,0.00025513,2]
[328741213,1717756238581,-46.36977926,0.00025513,2]
[328741214,1717756238592,-904.07,0.00025562,2]
[328741215,1717756238602,-49.81339801,0.00025593,2]
[328741216,1717756238631,-544.57763909,0.00025593,2]
[328741226,1717756241099,-405.6089629,0.00025593,2]
[328741229,1717756241108,-1179.01,0.00025717,2]
[328741232,1717756241118,-250.0,0.0002572,2]
[328741234,1717756241128,-176.7,0.00025735,2]
[328741235,1717756241138,-155.11,0.0002574,2]
[328741236,1717756241148,-150.0,0.00025744,2]
[328741237,1717756241157,-2000.0,0.00025758,2]
[328741238,1717756241167,-200.0,0.00025758,2]
[328741239,1717756241176,-2000.0,0.00025758,2]
[328741240,1717756241186,-200.0,0.00025758,2]
[328741241,1717756241196,-327.43,0.0002576,2]
[328741242,1717756241215,-250.0,0.0002576,2]
[328741243,1717756241225,-1916.9010371,0.00025765,2]
[328741244,1717756242259,-820.68169376,0.00025765,2]
[328741245,1717756242612,-957.60599548,0.00025765,2]
[328741249,1717756243504,-17277.03127366,0.00025765,2]
[328741250,1717756243514,-250.0,0.00025795,2]
[328741251,1717756243524,-464.36118291,0.00025832,2]
[328741256,1717756246028,-1854.45610365,0.00025832,2]
[328741257,1717756246196,-508.00071257,0.00025832,2]
[328741258,1717756246213,-180.64200087,0.00025832,2]
[328741259,1717756246223,-600.0,0.00025848,2]
[328741260,1717756246232,-152.0,0.00025878,4]
[328741261,1717756246243,-500.0,0.00025939,2]
[328741262,1717756246253,-500.0,0.00025939,2]
[328741263,1717756246263,-371.13,0.00025954,2]
[328741264,1717756246272,-380.5296931,0.00026,2]
[328741265,1717756246284,-1945.66615986,0.00026015,2]
[328741266,1717756246298,-54.33384014,0.00026015,2]
[328741267,1717756246307,-200.0,0.00026015,2]
[328741268,1717756246317,-1038.14583733,0.00026015,2]
[328741269,1717756246327,-200.0,0.00026015,2]
[328741270,1717756246336,-716.82,0.00026092,2]
[328741271,1717756246346,-2670.91,0.00026172,2]
[328741272,1717756246355,-1000.0,0.000263,2]
[328741273,1717756246364,-300.80461409,0.00026625,2]
[328741274,1717756246374,-1218.0,0.000267,2]
[328741275,1717756246384,-168.37,0.00026821,2]
[328741276,1717756246394,-400.0,0.00026823,2]
[328741277,1717756246404,-1000.0,0.00026839,2]
[328741278,1717756246414,-4798.39,0.0002691,2]
[328741279,1717756246423,-309.19455986,0.00027,2]
[328741280,1717756246448,-990.80544014,0.00027,2]
[328741281,1717756246458,-435.05455986,0.00027,2]
[328741282,1717756246471,-3592.97359775,0.00027,2]
[328741283,1717756246480,-163.96,0.00027075,2]
[328741284,1717756246489,-881.59,0.00027123,2]
[328741285,1717756246499,-847.53,0.00027123,2]
[328741286,1717756246508,-167.0,0.00027305,2]
[328741287,1717756246518,-4823.9,0.00027345,2]
[328741288,1717756246530,-438.112191,0.0002739,2]
[328741289,1717756246539,-1497.96,0.00027397,3]
[328741290,1717756246549,-260.45,0.00027397,10]
[328741291,1717756246558,-2000.0,0.000274,2]
[328741292,1717756246568,-176.7,0.00027451,2]
[328741293,1717756246578,-189.64138517,0.000275,2]
[328741294,1717756246588,-206.06,0.00027534,2]
[328741295,1717756246598,-1000.0,0.00027682,2]
[328741296,1717756246608,-2304.0,0.000277,2]
[328741297,1717756246617,-203.190193,0.00027873,2]
[328741298,1717756246627,-175.926658,0.00027873,2]
[328741299,1717756246637,-177.489144,0.00027873,2]
[328741300,1717756246646,-157.327532,0.00027873,2]
[328741301,1717756246656,-183.487912,0.00027873,2]
[328741302,1717756246666,-180.514959,0.00027873,2]
[328741303,1717756246675,-252.202847,0.00027873,2]
[328741304,1717756246685,-3387.57486753,0.000279,10]
[328741305,1717756246695,-1000.0,0.000279,2]
[328741306,1717756246704,-4913.49,0.00027907,2]
[328741307,1717756246716,-3175.7937317,0.0002799,2]
[328741308,1717756246725,-402.53,0.00028082,2]
[328741309,1717756246735,-318.3,0.00028082,2]
[328741310,1717756246743,-158.25,0.00028082,2]
[328741311,1717756246753,-203.190193,0.00028221,2]
[328741312,1717756246763,-252.202847,0.00028221,2]
[328741313,1717756246773,-365.46,0.00028226,3]
[328741314,1717756246783,-500.0,0.00028272,2]
[328741315,1717756246792,-500.0,0.00028272,2]
[328741316,1717756246802,-500.0,0.00028272,2]
[328741317,1717756246812,-500.0,0.00028272,2]
[328741318,1717756246822,-500.0,0.00028272,2]
[328741319,1717756246832,-500.0,0.00028272,2]
[328741320,1717756246842,-500.0,0.00028272,2]
[328741321,1717756246852,-500.0,0.00028272,2]
[328741322,1717756246862,-500.0,0.00028272,2]
[328741323,1717756246871,-500.0,0.00028272,2]
[328741324,1717756246881,-152.0,0.00028292,5]
[328741325,1717756246891,-177.489144,0.00028337,2]
[328741326,1717756246900,-716.82,0.00028356,2]
[328741327,1717756246910,-670.24851786,0.00028356,2]
[328741328,1717756246920,-1050.88,0.00028356,2]
[328741329,1717756246930,-319.44,0.00028356,2]
[328741330,1717756246940,-422.39,0.00028356,2]
[328741331,1717756246949,-150.0,0.00028356,2]
[328741332,1717756246959,-207.71,0.00028356,2]
[328741333,1717756246970,-300.75,0.00028356,2]
[328741334,1717756246980,-704.22,0.00028356,2]
[328741335,1717756246990,-300.0,0.00028356,2]
[328741336,1717756246999,-422.39,0.00028356,2]
[328741337,1717756247009,-150.0,0.00028356,2]
[328741338,1717756247019,-418.89,0.00028356,2]
[328741339,1717756247029,-150.0,0.00028356,2]
[328741340,1717756247041,-150.0,0.00028356,2]
[328741341,1717756247050,-150.0,0.00028356,2]
[328741342,1717756247060,-1179.01,0.00028456,2]
[328741343,1717756247069,-4887.33,0.00028481,2]
[328741344,1717756247078,-2255.16124753,0.00028509,2]
[328741345,1717756247090,-244.83875247,0.00028509,2]
[328741346,1717756247100,-670.2485178,0.00028528,2]
[328741347,1717756247109,-203.190193,0.00028569,2]
[328741348,1717756247119,-252.202847,0.00028569,2]
[328741349,1717756247128,-4924.61,0.00028584,2]
[328741350,1717756247138,-150.172,0.00028609,2]
[328741351,1717756247147,-5780.0,0.00028609,2]
[328741352,1717756247157,-5152.0,0.00028609,2]
[328741353,1717756247167,-1471.0,0.00028609,2]
[328741354,1717756247176,-38034.0,0.00028609,2]
[328741355,1717756247184,-446.0,0.00028609,2]
[328741356,1717756247353,-809.473,0.00028609,2]
[328741357,1717756247401,-674.258,0.00028609,2]
[328741358,1717756247411,-625.70433105,0.00028666,2]
[328741359,1717756247421,-670.2485178,0.00028699,2]
[328741360,1717756247430,-157.11055522,0.00028767,30]
[328741361,1717756247440,-392.82,0.00028793,2]
[328741362,1717756247449,-392.82,0.00028801,2]
[328741363,1717756247460,-177.489144,0.00028802,2]
[328741364,1717756247471,-392.82,0.00028808,2]
[328741365,1717756247482,-392.82,0.00028816,2]
[328741366,1717756247492,-392.82,0.00028823,2]
[328741367,1717756247501,-593.6024,0.0002883,2]
[328741368,1717756247511,-392.82,0.00028831,2]
[328741369,1717756247520,-223.20210976,0.00028837,2]
[328741370,1717756247530,-392.82,0.00028839,2]
[328741371,1717756247540,-392.82,0.00028846,2]
[328741372,1717756247550,-392.82,0.00028854,2]
[328741373,1717756247560,-11618.7071,0.00028855,2]
[328741374,1717756247569,-392.82,0.00028861,2]
[328741375,1717756247579,-392.82,0.00028869,2]
[328741376,1717756247589,-670.2485178,0.00028871,2]
[328741377,1717756247599,-392.82,0.00028876,2]
[328741378,1717756247608,-392.82,0.00028884,2]
[328741379,1717756247617,-392.82,0.00028892,2]
[328741380,1717756247627,-392.82,0.00028899,2]
[328741381,1717756247637,-392.82,0.00028907,2]
[328741382,1717756247647,-392.82,0.00028914,2]
[328741383,1717756247657,-150.0,0.00028918,5]
[328741384,1717756247667,-203.190193,0.00028918,2]
[328741385,1717756247678,-252.202847,0.00028918,2]
[328741386,1717756247689,-159.4,0.0002892,2]
[328741387,1717756247698,-392.82,0.00028922,2]
[328741388,1717756247707,-392.82,0.0002893,2]
[328741389,1717756247718,-26121.48942057,0.0002893,7]
[328741390,1717756247727,-392.82,0.00028937,2]
[328741391,1717756247735,-157.11055522,0.00028986,30]
[328741392,1717756247747,-223.20210969,0.00028989,2]
[328741393,1717756247756,-780.02118599,0.00029,2]
[328741394,1717756247768,-12692.441904,0.00029,2]
[328741395,1717756423296,3410439.02104436,0.00014,2]
[328741396,1717756435004,9897.06325234,9e-05,2]
[328741397,1717756470417,26668.1800648,6.94e-05,2]
[328741405,1717756598428,175237.53244279,0.00015,2]
[328741434,1717756770347,50000.0,0.0003,40]
[328741442,1717756895309,3115.77077026,0.00029863,90]
[328741486,1717757432319,-176.41950673,0.0001719,2]
[328741487,1717757432329,-531.15011943,0.0001719,2]
[328741488,1717757432339,-132.95369313,0.0001719,2]
[328741489,1717757432351,-341.38429539,0.0001719,2]
[328741490,1717757432361,-2367.76414269,0.00017191,2]
[328741491,1717757432371,-1624.71052526,0.00017192,2]
[328741492,1717757432380,-481.77513052,0.00017193,2]
[328741493,1717757432390,-1165.95,0.00019699,2]
[328741494,1717757432400,-150.0,0.00019699,2]
[328741495,1717757432409,-664.70109546,0.00019726,2]
[328741496,1717757432421,-530.14499983,0.00019726,2]
[328741497,1717757432433,-7673.35390471,0.00019726,2]
[328741498,1717757432443,-447.6,0.00019726,2]
[328741499,1717757432452,-299.99,0.00019726,7]
[328741500,1717757432463,-226.6238354,0.000201,2]
[328741501,1717757432472,-422.11752507,0.000218,2]
[328741502,1717757432514,-486.70279003,0.000218,2]
[328741503,1717757432526,-1969.1796849,0.000218,2]
[328741504,1717757432538,-364.67036088,0.00024,3]
[328741505,1717757432550,-162.72,0.00024384,2]
[328741506,1717757432559,-165.76,0.00024384,2]
[328741507,1717757432570,-1420.67577758,0.000249,2]
[328741508,1717757432583,-884.77569813,0.000249,2]
[328741509,1717757432594,-534.80120272,0.00025,2]
[328741510,1717757432604,-609.29,0.00025403,2]
[328741511,1717757432615,-83.31388847,0.00027,2]
[328741512,1717757432711,-3975.86622303,0.00027,2]
[328741513,1717757432724,-5186.31604866,0.00027,2]
[328741514,1717757432736,-478.1956183,0.00027,2]
[328741543,1717757438463,-5780.40666516,0.00027,2]
[328741544,1717757438473,-309.27,0.0002717,2]
[328741545,1717757438483,-250.0,0.00027196,2]
[328741546,1717757438492,-250.0,0.00027242,2]
[328741547,1717757438502,-186.29189777,0.00027489,2]
[328741548,1717757438643,-393.19965,0.00027489,2]
[328741559,1717757443071,-2000.0,0.000274,2]
[328741561,1717757443081,-4273.38845223,0.00027489,2]
[328741562,1717757443090,-1737.96869295,0.00027657,2]
[328741563,1717757443100,-166.66,0.00027662,2]
[328741564,1717757443110,-609.29,0.00027667,2]
[328741565,1717757443120,-155.11,0.00027724,2]
[328741566,1717757443130,-200.0,0.00027739,2]
[328741567,1717757443140,-452.03,0.00027771,2]
[328741568,1717757443150,-392.33,0.00027812,2]
[328741569,1717757443160,-166.66,0.00027951,2]
[328741570,1717757443170,-250.0,0.00027961,2]
[328741571,1717757443181,-480.0,0.00027967,2]
[328741572,1717757443192,-166.66,0.00028239,2]
[328741573,1717757443202,-867.09449983,0.00028256,2]
[328741574,1717757443214,-1789.65068256,0.00028256,2]
[328741575,1717757443225,-2134.84238958,0.00028256,2]
[328741585,1717757443595,-758.19771398,0.00028256,2]
[328741586,1717757443607,-2829.58704795,0.00028256,2]
[328741587,1717757443618,-254.67921592,0.00028256,2]
[328741588,1717757443828,-6638.79755018,0.00028256,2]
[328741589,1717757443838,-168.37,0.00028493,2]
[328741590,1717757443848,-382.87843647,0.00028523,2]
[328741604,1717757444097,-5342.12156353,0.00028523,2]
[328741606,1717757444107,-1470.0,0.00028523,2]
[328741608,1717757444117,-5127.0,0.00028523,2]
[328741610,1717757444127,-7559.803,0.00028523,2]
[328741612,1717757444137,-166.66,0.00028527,2]
[328741614,1717757444147,-176.7,0.00028541,2]
[328741616,1717757444156,-520.0,0.00028554,2]
[328741618,1717757444166,-22382.90543979,0.00028558,2]
[328741620,1717757444175,-499.99587,0.0002871,4]
[328741622,1717757444185,-166.66,0.00028816,2]
[328741624,1717757444195,-3747.4186,0.000289,2]
[328741627,1717757444205,-217.04,0.0002899,10]
[328741629,1717757444216,-150.01,0.00028999,2]
[328741631,1717757444225,-2301.50559525,0.00028999,2]
[328741633,1717757444235,-5242.48893816,0.00029,2]
[328741635,1717757444244,-533.92033964,0.00029,2]
[328741637,1717757444253,-1350.0,0.00029,2]
[328741639,1717757444263,-9049.31052412,0.00029,2]
[328741641,1717757444274,-1141.29801,0.00029,2]
[328741643,1717757444284,-166.61799817,0.00029,2]
[328741645,1717757444293,-166.61799817,0.00029,2]
[328741647,1717757444302,-166.61799817,0.00029,2]
[328741649,1717757444311,-166.61799817,0.00029,2]
[328741651,1717757444320,-166.61799817,0.00029,2]
[328741652,1717757444330,-166.61799817,0.00029,2]
[328741655,1717757444339,-166.61799817,0.00029,2]
[328741657,1717757444348,-166.66,0.00029104,2]
[328741659,1717757444359,-166.61799817,0.00029114,2]
[328741661,1717757444368,-2501.2,0.00029124,2]
[328741663,1717757444377,-157.11055522,0.00029205,30]
[328741665,1717757444387,-457.14062155,0.00029264,2]
[328741667,1717757444396,-177.489144,0.00029266,2]
[328741669,1717757444405,-180.514959,0.00029266,2]
[328741671,1717757444414,-203.190193,0.00029266,2]
[328741673,1717757444424,-252.202847,0.00029266,2]
[328741675,1717757444433,-354.0,0.000293,2]
[328741677,1717757444442,-151.0,0.00029334,7]
[328741679,1717757444451,-189.31947535,0.00029364,2]
[328741681,1717757444460,-155.29569903,0.00029364,2]
[328741683,1717757444469,-402.14911068,0.00029389,15]
[328741685,1717757444478,-313.18799169,0.0002939,2]
[328741686,1717757444488,-157.11055522,0.00029397,30]
[328741688,1717757444497,-158.75758828,0.00029404,2]
[328741691,1717757444507,-166.61799817,0.00029436,2]
[328741693,1717757444516,-402.14911068,0.00029446,15]
[328741694,1717757444526,-155.34803243,0.00029448,2]
[328741697,1717757444536,-166.61799817,0.0002947,2]
[328741699,1717757444548,-166.61799817,0.0002947,2]
[328741700,1717757444557,-166.61799817,0.0002947,2]
[328741703,1717757444567,-166.61799817,0.0002947,2]
[328741705,1717757444576,-166.61799817,0.00029479,2]
[328741707,1717757444587,-166.61799817,0.00029479,2]
[328741708,1717757444597,-166.61799817,0.00029479,2]
[328741710,1717757444607,-16407.05870484,0.0002948,14]
[328741713,1717757444618,-12250.09028272,0.00029489,2]
[328741715,1717757444631,-166.61799817,0.0002949,2]
[328741717,1717757444640,-2110.0,0.000295,15]
[328741718,1717757444650,-402.14911068,0.00029503,15]
[328741720,1717757444659,-155.29569903,0.00029518,2]
[328741723,1717757444669,-154.71475256,0.00029531,2]
[328741724,1717757444678,-313.18799169,0.00029535,2]
[328741727,1717757444688,-402.14911068,0.00029559,15]
[328741729,1717757444698,-227.98695399,0.00029559,2]
[328741731,1717757444708,-622.2719633,0.00029559,2]
[328741733,1717757444719,-228.14268822,0.00029559,2]
[328741735,1717757444728,-166.61799817,0.00029568,2]
[328741737,1717757444737,-166.61799817,0.00029568,2]
[328741739,1717757444747,-166.61799817,0.00029568,2]
[328741741,1717757444757,-165.9373607,0.00029577,2]
[328741742,1717757444766,-155.38009275,0.00029581,2]
[328741744,1717757444776,-166.61799817,0.00029604,2]
[328741747,1717757444785,-166.61799817,0.00029604,2]
[328741748,1717757444795,-166.61799817,0.00029604,2]
[328741751,1717757444805,-402.14911068,0.00029616,15]
[328741753,1717757444815,-157.11055522,0.00029616,30]
[328741754,1717757444825,-189.31947535,0.00029617,2]
[328741755,1717757444835,-500.0,0.00029623,2]
[328741756,1717757444845,-200.0,0.00029623,2]
[328741757,1717757444855,-166.61799817,0.0002964,2]
[328741758,1717757444864,-166.61799817,0.0002964,2]
[328741759,1717757444874,-166.61799817,0.0002964,2]
[328741760,1717757444883,-154.04493063,0.00029651,2]
[328741761,1717757444893,-158.75758828,0.00029667,2]
[328741762,1717757444902,-155.55623825,0.00029672,2]
[328741763,1717757444912,-402.14911068,0.00029673,15]
[328741764,1717757444922,-166.61799817,0.00029675,2]
[328741765,1717757444931,-166.61799817,0.00029675,2]
[328741766,1717757444940,-166.61799817,0.00029675,2]
[328741767,1717757444951,-157.27320037,0.00029676,2]
[328741768,1717757444960,-3354.52366322,0.00029685,15]
[328741769,1717757444974,-500.0,0.00029685,15]
[328741771,1717757444987,-579.35,0.00029685,15]
[328741773,1717757444998,-6230.36367307,0.00029685,15]
[328741775,1717757445008,-166.61799817,0.00029711,2]
[328741777,1717757445017,-166.61799817,0.00029711,2]
[328741779,1717757445027,-166.61799817,0.00029711,2]
[328741781,1717757445036,-155.0,0.00029711,2]
[328741783,1717757445046,-10664.23733629,0.00029721,15]
[328741785,1717757445055,-402.14911068,0.0002973,15]
[328741787,1717757445064,-158.75758828,0.00029737,2]
[328741788,1717757445073,-166.61799817,0.00029747,2]
[328741790,1717757445082,-166.61799817,0.00029747,2]
[328741791,1717757445092,-166.61799817,0.00029747,2]
[328741792,1717757445101,-155.34803243,0.00029747,2]
[328741793,1717757445110,-166.61799817,0.00029751,2]
[328741794,1717757445120,-166.61799817,0.00029751,2]
[328741795,1717757445129,-166.61799817,0.00029751,2]
[328741796,1717757445138,-166.61799817,0.00029751,2]
[328741797,1717757445148,-159.4,0.00029753,2]
[328741798,1717757445158,-166.61799817,0.00029753,2]
[328741799,1717757445168,-10664.23733629,0.00029757,15]
[328741800,1717757445178,-867.6847,0.00029761,2]
[328741801,1717757445188,-2548.3649,0.00029761,2]
[328741802,1717757445197,-4210.6194,0.00029761,2]
[328741803,1717757445206,-7500.0,0.00029761,2]
[328741804,1717757445216,-1969.76959012,0.00029763,2]
[328741805,1717757445226,-270.50012983,0.00029763,2]
[328741806,1717757445235,-1969.76959011,0.00029775,2]
[328741807,1717757445245,-511.64564158,0.00029778,2]
[328741808,1717757445442,-1989.55435842,0.00029778,2]
[328741809,1717757445452,-167.40158226,0.0002978,2]
[328741810,1717757445462,-402.14911068,0.00029786,15]
[328741811,1717757445472,-1969.76959011,0.00029788,2]
[328741812,1717757445481,-297.410728,0.00029793,15]
[328741813,1717757445494,-398.7059004,0.00029793,15]
[328741814,1717757445523,-292.5,0.00029793,15]
[328741815,1717757446645,-1425.58506,0.00029793,15]
[328741816,1717757446656,-2366.9955033,0.00029793,15]
[328741817,1717757446668,-1408.78428682,0.00029793,15]
[328741818,1717757446679,-4474.25585777,0.00029793,15]
[328741819,1717757446688,-155.34803243,0.00029799,2]
[328741820,1717757446697,-155.38009275,0.00029799,2]
[328741821,1717757446707,-167.40158226,0.00029799,2]
[328741822,1717757446717,-157.0,0.000298,5]
[328741823,1717757446727,-345.0,0.000298,2]
[328741824,1717757446736,-349.0,0.000298,2]
[328741825,1717757446745,-160.0,0.000298,2]
[328741826,1717757446755,-5400.0,0.000298,30]
[328741827,1717757446765,-998.12,0.000298,2]
[328741828,1717757446775,-479.75263,0.000298,2]
[328741829,1717757446785,-150.0,0.000298,6]
[328741830,1717757446794,-1969.76959011,0.000298,2]
[328741831,1717757446804,-154.90842547,0.00029802,2]
[328741832,1717757446814,-1969.76959011,0.00029813,2]
[328741833,1717757446823,-167.40158226,0.00029818,2]
[328741834,1717757446832,-154.71475256,0.0002982,2]
[328741835,1717757446841,-1969.76959011,0.00029825,2]
[328741836,1717757446851,-10664.23733629,0.00029828,15]
[328741837,1717757446860,-270.50012981,0.00029832,2]
[328741838,1717757446870,-150.5,0.00029833,15]
[328741839,1717757446879,-150.5,0.00029833,15]
[328741840,1717757446888,-150.5,0.00029833,15]
[328741841,1717757446897,-217.5,0.00029833,15]
[328741842,1717757446907,-313.18799169,0.00029834,2]
[328741843,1717757446916,-157.11055522,0.00029836,30]
[328741844,1717757446926,-167.40158226,0.00029838,2]
[328741845,1717757446935,-1969.76959011,0.00029838,2]
[328741846,1717757446945,-158.75758828,0.00029839,2]
[328741847,1717757446955,-155.34803243,0.0002984,2]
[328741848,1717757446964,-150.5,0.00029843,15]
[328741849,1717757446973,-150.5,0.00029843,15]
[328741850,1717757446983,-150.5,0.00029843,15]
[328741851,1717757446992,-150.5,0.00029843,15]
[328741852,1717757447002,-186.5,0.00029843,15]
[328741853,1717757447011,-402.14911068,0.00029843,15]
[328741854,1717757447020,-1969.76959011,0.0002985,2]
[328741855,1717757447029,-159.4,0.00029851,2]
[328741856,1717757447038,-153.0,0.00029851,2]
[328741857,1717757447048,-163.8649349,0.00029851,2]
[328741858,1717757447058,-159.4,0.00029853,2]
[328741859,1717757447067,-159.4,0.00029853,2]
[328741860,1717757447077,-153.0,0.00029853,2]
[328741867,1717757447086,-153.0,0.00029853,2]
[328741868,1717757447271,-150.5,0.00029853,15]
[328741869,1717757447282,-150.5,0.00029853,15]
[328741870,1717757447291,-150.5,0.00029853,15]
[328741871,1717757447301,-150.5,0.00029853,15]
[328741872,1717757447311,-150.5,0.00029853,15]
[328741873,1717757447320,-153.0,0.00029853,2]
[328741874,1717757447330,-163.8649349,0.00029853,2]
[328741875,1717757447339,-71.21111067,0.00029854,2]
[328741876,1717757447356,-82.83381996,0.00029854,2]
[328741877,1717757447366,-167.40158226,0.00029857,2]
[328741878,1717757447375,-674.50379852,0.00029858,4]
[328741879,1717757447386,-18572.5247004,0.00029858,4]
[328741880,1717757447398,-1899.15,0.00029858,4]
[328741913,1717758149826,-150.0,0.00031866,120]
[328741926,1717758595066,-176.41950673,0.00017231,2]
[328741927,1717758595096,-179.675928,0.00017232,2]
[328741928,1717758595126,-2343.90456527,0.00017232,2]
[328741978,1717758640979,-395.2816571,0.00017231,2]
[328741979,1717758640990,-23.85957742,0.00017232,2]
[328741980,1717758640999,-121.83978536,0.00017232,2]
[328741981,1717758641011,-1502.8707399,0.00017232,2]
[328741982,1717758641020,-403.40682997,0.000218,2]
[328741983,1717758641032,-295.59317003,0.000218,2]
[328741984,1717758641041,-303.86,0.00024384,2]
[328741985,1717758641050,-1250.0,0.00025,2]
[328741986,1717758641060,-548.36,0.00026162,2]
[328741987,1717758641071,-1300.0,0.00027,2]
[328741988,1717758641081,-900.0,0.000274,2]
[328741989,1717758641090,-250.0,0.00027716,2]
[328741990,1717758641099,-226.01,0.0002803,2]
[328741991,1717758641109,-260.88,0.00028039,2]
[328741992,1717758641118,-176.7,0.00028046,2]
[328741993,1717758641128,-250.0,0.00028047,2]
[328741994,1717758641137,-1000.0,0.00028075,2]
[328741995,1717758641148,-250.0,0.00028083,2]
[328741996,1717758641159,-257.72,0.00028155,2]
[328741997,1717758641168,-250.89596417,0.00028199,2]
[328742005,1717758641769,-218.01423092,0.00028199,2]
[328742007,1717758641779,-2637.98576908,0.000282,2]
[328742009,1717758642978,-2274.35423092,0.000282,2]
[328742010,1717758642989,-548.36,0.00028426,2]
[328742011,1717758642999,-10175.14,0.00028633,15]
[328742012,1717758643008,-10175.14,0.00028633,15]
[328742013,1717758643019,-10175.14,0.00028633,15]
[328742014,1717758643029,-10175.14,0.00028633,15]
[328742015,1717758643038,-10175.14,0.00028906,15]
[328742016,1717758643049,-10175.14,0.00028906,15]
[328742017,1717758643058,-1350.0,0.00029,2]
[328742018,1717758643069,-713.88392726,0.00029,2]
[328742019,1717758643079,-10175.14,0.0002918,15]
[328742020,1717758643088,-10175.14,0.0002918,15]
[328742021,1717758643098,-155.38009275,0.00029417,2]
[328742022,1717758643108,-281.86919252,0.00029431,2]
[328742023,1717758643117,-10175.14,0.00029453,15]
[328742024,1717758643128,-10175.14,0.00029453,15]
[328742025,1717758643140,-249.997935,0.00029455,4]
[328742026,1717758643149,-201.07455534,0.00029458,15]
[328742027,1717758643159,-158.75758828,0.00029467,2]
[328742028,1717758643168,-2215.84,0.000295,2]
[328742029,1717758643182,-154.71475256,0.00029511,2]
[328742030,1717758643191,-155.34803244,0.00029513,2]
[328742031,1717758643201,-281.86919252,0.00029524,2]
[328742032,1717758643211,-176.698177,0.00029527,2]
[328742033,1717758643220,-155.55623826,0.00029534,2]
[328742034,1717758643230,-10630.23135197,0.0002955,5]
[328742035,1717758643261,-515.1,0.0002955,5]
[328742036,1717758643273,-478.64264733,0.0002955,5]
[328742037,1717758643285,-17798.1970849,0.0002955,5]
[328742038,1717758643297,-5878.8,0.0002955,5]
[328742039,1717758643372,-1500.0,0.0002955,5]
[328742040,1717758643385,-362.89321722,0.0002955,5]
[328742060,1717758643982,-5161.87530845,0.0002955,5]